Cogmind - Beta 16 --- EXPLORER MODE // 2025.12.10 @ 20:22:46 Player: Dragonlord Result: Destroyed by Y-45 Defender with Heavy Assault Rifle Performance ------------- Evolutions (1) 500 Regions Visited (3) 600 Robots Destroyed (23) 115 Value Destroyed (524) 524 Prototype IDs (2) 40 Alien Tech Used (0) 0 Bonus (0) 0 TOTAL SCORE: 1779 Bonus ------- None Cogmind --------- Core Integrity 0/400 Matter 297/300 Energy 100/100 System Corruption 2% Temperature Cool (9) Movement Core (200) Ox3 Location -9/Storage Parts ------- > --- POWER (1) -------- (None) > --- PROPULSION (2) --- (None) > --- UTILITY (3) ------ Medium Storage Unit > --- WEAPON (4) ------- (None) > --- INVENTORY (10) --- (None) Peak State ------------ > --- POWER ------------ Ion Engine > --- PROPULSION ------- Aluminum Leg Aluminum Leg > --- UTILITY ---------- Medium Storage Unit ECM Suite Recalibrator > --- WEAPON ----------- EM Shotgun EM Shotgun Beam Rifle Beam Cannon > --- INVENTORY -------- Aluminum Leg Aluminum Leg Heat Sink Medium Storage Unit Medium Armor Plating Tractor Beam Heavy Assault Rifle Shotgun Grenade Launcher Mining Claw [Rating: 17] Favorites ----------- Power Ion Engine Engine Ion Engine Propulsion Aluminum Leg Leg Aluminum Leg Utility Medium Storage Unit Device ECM Suite Storage Medium Storage Unit Processor Improved Targeting Computer Weapon Small Laser Energy Gun Small Laser Energy Cannon Beam Cannon Ballistic Gun Assault Rifle Launcher Grenade Launcher Build | -11 -10 -9 -9 ------- Run | Yrd Mat Mat Sto Slots Evolved 3 | . 1 2 . Power . | . . . . Propulsion . | . . . . Utility 1 | . . 1 . Weapon 2 | . 1 1 . Parts Attached 22 | 6 4 12 . Power 1 | 1 . . . Engine 1 | 1 . . . Core . | . . . . Reactor . | . . . . Propulsion 5 | 2 2 1 . Treads . | . . . . Leg 5 | 2 2 1 . Wheel . | . . . . Hover . | . . . . Flight . | . . . . Utility 5 | 2 . 3 . Device 2 | 1 . 1 . Storage 2 | 1 . 1 . Processor 1 | . . 1 . Hackware . | . . . . Protection . | . . . . Artifact . | . . . . Weapon 11 | 1 2 8 . Energy Gun 4 | . 1 3 . Energy Cannon 1 | . . 1 . Ballistic Gun 5 | 1 1 3 . Ballistic Cannon . | . . . . Launcher 1 | . . 1 . Special Weapon . | . . . . Impact Weapon . | . . . . Slashing Weapon . | . . . . Piercing Weapon . | . . . . Special Melee Weapon . | . . . . Unidentified Prototypes . | . . . . Parts Lost 10 | . . 10 . Power 1 | . . 1 . Propulsion 2 | . . 2 . Utility 4 | . . 4 . Weapon 3 | . . 3 . Highest Loss Streak 4 | . . 4 . To Critical Strikes . | . . . . Average Backups 4 | . 6 3 . Power . | . . . . Propulsion 1 | . 1 . . Utility 1 | . 2 1 . Weapon 1 | . 2 1 . Tool/Special . | . . . . Unused Backups 18 | . 9 9 . Power . | . . . . Propulsion 9 | . 8 1 . Utility 4 | . . 4 . Weapon 5 | . 1 4 . Tool/Special . | . . . . Average Slot Usage (%) 85 | . 98 80 10 Engine 6 | . 12 3 . Leg 20 | . 24 17 . Device 11 | . 12 12 . Storage 11 | . 12 10 10 Energy Gun 8 | . 11 6 . Energy Cannon 5 | . . 9 . Ballistic Gun 18 | . 24 14 . Launcher 2 | . . 5 . Peak Build Rating 17 | 6 9 17 1 Average Rating 9 | 5 8 11 1 On Entrance 4 | . 6 9 1 Avg Prop Armor Cover (%) . | . . . . Naked Turns . | . . . . Heaviest Build 30 | 19 21 30 10 Greatest Support 20 | 20 20 20 3 Greatest Overweight (x) 6 | . 6 6 3 Average Overweight (x) 1 | . . 1 3 Largest Inventory Capacity 10 | 10 10 10 10 Average Capacity 9 | 9 10 10 10 Most Carried 10 | . 10 10 . Average Carried 4 | . 6 3 . Final Capacity 10 | 10 10 10 10 Final Carried 10 | . 10 . . Class Distribution -------------------- 86% | Hacker-Gunner 13% | Hacker-Mutant Dominant Class ---------------- Hacker-Gunner | -10/Materials Hacker-Gunner | -9/Materials Hacker-Mutant | -9/Storage Resources | -11 -10 -9 -9 ----------- Run | Yrd Mat Mat Sto Matter Collected 493 | 216 175 102 . Remotely . | . . . . Salvage Created 710 | . 295 415 . Parts 54 | . 22 32 . Haulers Intercepted 1 | . 1 . . Recyclers Shooed 1 | . . 1 . Parts Field Recycled . | . . . . Retrieved Matter . | . . . . Parts Self-Destructed . | . . . . Prevented . | . . . . Parts Restored . | . . . . Kills | -11 -10 -9 -9 ------- Run | Yrd Mat Mat Sto Combat Hostiles Destroyed 15 | . 6 9 . Guns 13 | . 6 7 . Cannons 1 | . . 1 . AOE 1 | . . 1 . Classes Destroyed 7 | . 5 2 . Builder 1 | . . 1 . Hauler 1 | . 1 . . Mechanic 1 | . 1 . . Watcher 5 | . 3 2 . Swarmer 6 | . 4 2 . Grunt 7 | . 2 5 . Sentry 2 | . . 2 . Best Kill Streak 2 | . 2 2 . Combat Bots Only 2 | . 2 2 . Max Kills in Single Turn 2 | . 2 2 . Gunslinging . | . . . . Exploded 1 | . . 1 . Melee . | . . . . Uniques/NPCs Destroyed . | . . . . Combat | -11 -10 -9 -9 -------- Run | Yrd Mat Mat Sto Hostile Shots Fired 230 | . 24 186 20 Missed 62 | . 8 48 6 Hits 168 | . 16 138 14 Projectile 168 | . 16 138 14 Critical Strikes 6 | . . 5 1 Damage Taken 1531 | . 143 1242 146 Core 435 | . 29 260 146 Absorbed by Shields . | . . . . Ignored by Resistances 852 | . 94 671 87 Regen/Repaired (Parts) 87 | . 87 . . Core Remaining (%) 94 | 100 88 . . Volleys Fired 33 | . 14 19 . Largest 4 | . 3 4 . Hottest 206 | . 80 206 . Shots Fired 98 | . 42 56 . Gun 79 | . 42 37 . Cannon 19 | . . 19 . Launcher . | . . . . Special . | . . . . Kinetic 33 | . 28 5 . Thermal 47 | . 14 33 . Explosive . | . . . . Electromagnetic 18 | . . 18 . Robot Hit Streak 23 | . 15 23 . Robot Miss Streak 3 | . 3 2 . Penetration Max . | . . . . Secondary Targets . | . . . . Shots Hit Robots 58 | . 26 32 . Core Hits 34 | . 16 17 1 Critical Kills . | . . . . Critical Parts Destroyed . | . . . . Critical Strikes . | . . . . Melee Attacks . | . . . . Impact . | . . . . Slashing . | . . . . Piercing . | . . . . Sneak Attacks . | . . . . Combat Hostiles . | . . . . Follow-up Attacks . | . . . . Damage Inflicted 1056 | . 331 724 1 Guns 705 | . 331 374 . Cannons 175 | . . 175 . Explosions 175 | . . 175 . Melee . | . . . . Ramming 1 | . . . 1 Kinetic 238 | . 223 15 . Thermal 569 | . 108 461 . Explosive . | . . . . Electromagnetic 248 | . . 248 . Impact . | . . . . Slashing . | . . . . Piercing . | . . . . Highest Corruption 2 | . 1 2 2 Average Corruption 1 | . 1 2 2 Corruption Purged . | . . . . Corruption Blocked . | . . . . Effects 23 | . 7 15 1 Message Errors 6 | . 3 3 . Matter Fused 6 | . 1 4 1 Heat Flow Errors 5 | . 1 4 . Parts Rejected 2 | . . 2 . Data Loss (minor) 4 | . 2 2 . Overload Shots . | . . . . Overflow Damage 32 | . . 32 . Projectiles . | . . . . Explosions 32 | . . 32 . Melee . | . . . . Knockbacks . | . . . . Impact . | . . . . Kinetic . | . . . . Secondary . | . . . . Self-Inflicted Damage 32 | . . 32 . Shots 2 | . . 2 . Rammed 4 | . . . 4 Targets Rammed 4 | . . . 4 Kicked . | . . . . Crushed . | . . . . Highest Temperature 325 | . 149 325 . Average Temperature 76 | . 46 88 . Received Heat Transfer 1029 | . 45 885 99 Effects 2 | . . 2 . Interference 1 | . . 1 . Short Circuit 1 | . . 1 . Siege Activations . | . . . . Martial Activations . | . . . . Shielding Activations . | . . . . Robots Disrupted . | . . . . Combat Hostiles . | . . . . Robots Corrupted . | . . . . Combat Hostiles . | . . . . Parts Fried . | . . . . Impact Corruptions . | . . . . Robots Melted . | . . . . Combat Hostiles . | . . . . Parts Melted . | . . . . Heat Transferred 1142 | . 250 892 . Parts Sabotaged . | . . . . Parts Stolen . | . . . . Parts Stripped . | . . . . Power Chain Reactions 3 | . . 3 . Alert | -11 -10 -9 -9 ------- Run | Yrd Mat Mat Sto Maximum Alert Level . | . . . . Low Security (%) 100 | 100 100 100 100 Level 1 . | . . . . Level 2 . | . . . . Level 3 . | . . . . Level 4 . | . . . . Level 5 . | . . . . High Security . | . . . . Max Security . | . . . . Peak Influence 51 | . 42 51 . Initial . | . . . . Average 2 | . 2 3 . Influence Increases 469 | . 201 268 . Destroy 0b10 Robot/C 300 | . 120 180 . Destroy 0b10 Robot/NC 40 | . 25 15 . Destroy Leader 92 | . 38 54 . Successful Hack 18 | . 18 . . Disable Machine 4 | . . 4 . Destroy Structure 15 | . . 15 . Influence Decreases 469 | . 201 268 . Time Decay 449 | . 201 248 . Lost Part 20 | . . 20 . Squads Dispatched 1 | . . 1 . Investigation . | . . . . Extermination . | . . . . Reinforcement 1 | . . 1 . Assault . | . . . . Garrison . | . . . . Intercept . | . . . . Searches Triggered . | . . . . Construction Impeded . | . . . . Haulers Reinforced . | . . . . Active Scanning Responses . | . . . . Cargo Convoy Interrupts . | . . . . Stealth | -11 -10 -9 -9 --------- Run | Yrd Mat Mat Sto Distress Signals 2 | . . 1 1 Communications Jammed . | . . . . Distress Signals . | . . . . Times Spotted 38 | . 16 17 5 Peak Tracking Total 4 | . 3 3 4 Tactical Retreats 4 | . 2 2 . ECM-based Alert Blocks 6 | . 4 2 . Traps | -11 -10 -9 -9 ------- Run | Yrd Mat Mat Sto Traps Triggered 6 | . 4 1 1 Indirectly . | . . . . Trap Hack Attempts . | . . . . Triggered . | . . . . Disarmed . | . . . . Reprogrammed . | . . . . Reused . | . . . . Traps Extracted . | . . . . Installed . | . . . . Triggered . | . . . . Machines | -11 -10 -9 -9 ---------- Run | Yrd Mat Mat Sto Machines Disabled 1 | . . 1 . Max in Single Turn 1 | . . 1 . Machines Repaired . | . . . . Machines Dismantled . | . . . . Machines Sabotaged . | . . . . Overloaded Fab Kills . | . . . . Hacking | -11 -10 -9 -9 --------- Run | Yrd Mat Mat Sto Machines Accessed 9 | . 8 1 . Terminals 6 | . 6 . . Fabricators . | . . . . Repair Stations 1 | . 1 . . Recycling Units 1 | . 1 . . Scanalyzers 1 | . . 1 . Garrison Access . | . . . . Total Hacks 40 | . 39 1 . Successful 32 | . 32 . . Failed 8 | . 7 1 . Catastrophic 1 | . 1 . . Database Lockouts . | . . . . Manual . | . . . . Terminals 25 | . 25 . . Fabricators . | . . . . Repair Stations 4 | . 4 . . Recycling Units 10 | . 10 . . Scanalyzers 1 | . . 1 . Garrison Access . | . . . . Terminal Hacks 18 | . 18 . . Record 9 | . 9 . . Prototype ID Bank 1 | . 1 . . Machine Index 1 | . 1 . . Scanalyzer Index 1 | . 1 . . Alert Level 1 | . 1 . . Dispatch Records 1 | . 1 . . Patrol Status 1 | . 1 . . Hauler Manifests 1 | . 1 . . Zone Layout 2 | . 2 . . Fabricator Hacks . | . . . . Repair Station Hacks 4 | . 4 . . Scan Component 2 | . 2 . . Repair 2 | . 2 . . Recycling Unit Hacks 10 | . 10 . . Recycle Component 9 | . 9 . . Report Inventory 1 | . 1 . . Scanalyzer . | . . . . Garrison Access Hacks . | . . . . Unauthorized Hacks . | . . . . Terminals . | . . . . Fabricators . | . . . . Repair Stations . | . . . . Recycling Units . | . . . . Scanalyzers . | . . . . Garrison Access . | . . . . Data Cores Recovered . | . . . . Used . | . . . . Hacking Detections 5 | . 5 . . Full Trace Events . | . . . . Feedback Events . | . . . . Feedback Blocked . | . . . . Robot Schematics Acquired . | . . . . Robots Built . | . . . . Authchips . | . . . . Time . | . . . . Total Robot Build Rating . | . . . . Part Schematics Acquired . | . . . . Parts Built . | . . . . Authchips . | . . . . Time . | . . . . Total Part Build Rating . | . . . . Part Studies Acquired . | . . . . Parts Repaired 2 | . 2 . . Time 52 | . 52 . . Parts Recycled 9 | . 9 . . Recycled Matter . | . . . . Retrieved Matter . | . . . . Retrieved Components . | . . . . Parts Scanalyzed . | . . . . Part Schematics Acquired . | . . . . Parts Damaged . | . . . . Bothacking | -11 -10 -9 -9 ------------ Run | Yrd Mat Mat Sto Used RIF Installer . | . . . . Robots Hacked . | . . . . Non-combat . | . . . . Combat . | . . . . Robot Hacks Applied . | . . . . Relay Couplers Released . | . . . . Fabnet Peak Effective % . | . . . . Robots Rewired . | . . . . Allies Hacked . | . . . . Hacks Repelled . | . . . . Allies | -11 -10 -9 -9 -------- Run | Yrd Mat Mat Sto Total Allies . | . . . . Largest Group . | . . . . Highest-Rated Group . | . . . . Highest-Rated Ally . | . . . . Total Orders . | . . . . Ally Attacks . | . . . . Total Damage . | . . . . Kills . | . . . . Allies Corrupted . | . . . . Allies Melted . | . . . . Intel | -11 -10 -9 -9 ------- Run | Yrd Mat Mat Sto Active Infowar (turns) 3543 | 88 1711 1744 . ECM 3543 | 88 1711 1744 . Robot Analysis Total . | . . . . Derelict Logs Recovered . | . . . . Drone Launches . | . . . . Drone Recoveries . | . . . . Exploration | -11 -10 -9 -9 ------------- Run | Yrd Mat Mat Sto Turns Passed 3927 | 115 1711 1940 161 Spaces Moved 1269 | 86 802 304 77 Core 136 | 7 1 51 77 Treads . | . . . . Legs 1133 | 79 801 253 . Wheels . | . . . . Hover . | . . . . Flight . | . . . . Fastest Speed 50 | 50 120 190 200 Average Speed 188 | 114 186 210 200 Slowest Speed 350 | 120 350 350 200 Overloaded Moves . | . . . . Propulsion Burnouts . | . . . . Robots Hopped . | . . . . Potential Cave-ins . | . . . . Cave-ins Triggered 1 | . . 1 . Exploration Rate (%) 35 | 5 95 31 12 Regions Visited 3 Branch Regions 1 Pre-discovered Areas . | . . . . Known Exits Taken 3 | 1 1 1 . Unknown Exits Taken . | . . . . Scrap Searched . | . . . . Spaces Dug . | . . . . Terrain Destroyed 9 | . . 9 . Melee . | . . . . Projectile . | . . . . AOE 9 | . . 9 . Terrain Rammed . | . . . . Walls Destroyed . | . . . . Machines Disabled . | . . . . Actions | -11 -10 -9 -9 --------- Run | Yrd Mat Mat Sto Total 2737 | 99 985 1572 81 Wait 1359 | 8 138 1213 . Move 1266 | 85 801 303 77 Hop . | . . . . Pick Up 27 | . 21 6 . Fast Attach 19 | 6 7 6 . Attach 3 | . . 3 . Detach 2 | . 1 1 . Swap 3 | . . 3 . Drop 21 | . 3 18 . Fire 33 | . 14 19 . Melee . | . . . . Ram 4 | . . . 4 Kick . | . . . . Crush . | . . . . Escape Stasis . | . . . . Rewire . | . . . . Trap . | . . . . Miscellaneous . | . . . . Route ------- -11/Scrapyard -10/Materials (discovered 5 exits: *Mat x3 / *Min / *Sub) -9/Materials (discovered 3 exits: *Mat / *Min / *Sto) -9/Storage History --------- Turn | Location | Event 3 | -11/Scrapyard | Identified exit to Materials 3 | -11/Scrapyard | Discovered exit to Materials (range 15) 116 | -11/Scrapyard | Entered Materials 116 | -10/Materials | Evolved 1 slot: Weapon x1 452 | -10/Materials | Build established: Hacker-Gunner 665 | -10/Materials | Identified exit to Subcaves 665 | -10/Materials | Discovered exit to Subcaves (range 7) 687 | -10/Materials | Identified exit to Materials 687 | -10/Materials | Discovered exit to Materials (range 14) 877 | -10/Materials | Repaired Aluminum Leg 905 | -10/Materials | Repaired Aluminum Leg 1042 | -10/Materials | Identified exit to Mines 1042 | -10/Materials | Discovered exit to Mines (range 14) 1556 | -10/Materials | Discovered exit to Materials (range 9) 1665 | -10/Materials | Discovered exit to Materials (range 15) 1827 | -10/Materials | Entered another Materials area 1827 | -9/Materials | Evolved 2 slots: Utility x1, Weapon x1 2327 | -9/Materials | Identified exit to Mines 2327 | -9/Materials | Discovered exit to Mines (range 12) 2433 | -9/Materials | Crushed by falling debris 3624 | -9/Materials | Lost 3 parts (1n1u1w) 3739 | -9/Materials | Identified exit to Storage 3739 | -9/Materials | Discovered exit to Storage (range 10) 3763 | -9/Materials | Core integrity fell below 50% 3767 | -9/Materials | Identified exit to Materials 3767 | -9/Materials | Discovered exit to Materials (range 15) 3767 | -9/Materials | Entered Storage 3793 | -9/Storage | Lost 4 parts (2u2w) 3845 | -9/Storage | Build established: Hacker-Mutant 3909 | -9/Storage | Core integrity fell below 20% 3928 | -9/Storage | Destroyed by Y-45 Defender with Heavy Assault Rifle Last Messages --------------- 03731_ System corrupted: Component data lost. 03739_ EXIT=FOUND: STORAGE 03750_ Beam Cannon destroyed. 03753_ Critical hit (Burn: +37). 03759_ Autogun destroyed. 03759_ Critical hit (Burn: +37). 03762_ Hcp. Matter Pod destroyed. 03763_ Critical hit (Burn: +37). 03767_ EXIT=FOUND: MATERIALS LOCATION=STORAGE GOAL=ESCAPE 03869_ System corrupted: Matter fused (-6). 03875_ Triggered Explosive Trap. 03875_ An explosion rips through the floor. 03876_ W-16 Scout distress signal alerts nearby ally. 03881_ The unstable cave ceiling collapses. 03921_ Slammed into Y-45 Defender. 03926_ Critical hit (Burn: +37). 03927_ Slammed into Y-45 Defender. Map ----- +----------------------------------------------------+ | ?????????????????????#+?????????????????? | | ?????????????????????# ?????????????????? | | ?????????????????????# ####?????????????? | | ?????????????????????# ?????????????? | | ?????????????????????# #?????????????? | | ???????????????????### #?????????????? | | ???????????????????? #?????????????? | | ??????????????????####/# ##????????????? | | ??????????????????# ##????????????? | | ?????????????????## """ #????????????? | | ?????????????????# """ #????????????? | | ?????????????????## """ #????????????? | | ??????????????????# # ##????????????? | | ??????????????????# # #?????????????? | | ??????????????????# ?#+########??????? | | ??????????????????#####?# #??????? | | ????????????????????????# #??????? | | ????????????????????????# """"" #??????? | | ????????????????????????# "???" #??????? | | ????????????????????????# ""??" #??????? | | ????????????????????????# "??"" #??????? | | ????????????????????????# "???" #??????? | | ????????????????????????# """"" #??????? | | ????????????????????????# #??????? | | ?????????????################Y#########?? | | ?????????? g u @Y Y #?? | | ?????????? #?? | | ?????????? a #?? | | ???????????#####+##+############### #?? | | ??????????????????????????????????# #?? | | ??????????????????????????????????# #?? | | ??????????????????????????????????# #?? | | ??????????????????????????????????# #?? | | ??????????????????????????????????# #?? | | ??????????????????????????????????# #?? | | ??????????????????????????????????# #?? | | ??????????????????????????????????# #?? | | ??????????????????????????????????# #?? | | ??????????????????????????????????# #?? | | ??????????????????????????????????# #?? | | ??????????????????????????????????# #?? | | ??????????????????????????????????# #?? | | ??????????????????????????????????# #?? | | ??????????????????????????????????# #?? | | ??????????????????????????????????# #?? | | ??????????????????????????????????#####?? | | ????????????????????????????????????????? | | ????????????????????????????????????????? | | ????????????????????????????????????????? | | ????????????????????????????????????????? | +----------------------------------------------------+ Best States ------------- Heat Dissipation 28 Energy Generation 10 Energy Capacity 250 Matter Stores 300 Matter Capacity 500 Sight Range 16 Terrain Scan Density 10 ECM Strength 1 Resistance: KI 35 Resistance: TH 35 Resistance: EX 35 Resistance: EM 35 Resistance: I 35 Resistance: S 35 Resistance: P 35 Evasion (%) 55 Targeting Accuracy 6 Offensive Hacking 20 Item Schematics ----------------- None Robot Schematics ------------------ None Fabricated ------------ Nothing Repaired ---------- Aluminum Leg | 34% | -10/Materials Aluminum Leg | 68% | -10/Materials Studied --------- None Alien Tech Used ----------------- None Achievements -------------- None Challenges ------------ None Game ------ Seed KineticAluminumParser Manual? 0 Play Time 00:48:25 Cumulative 20.6 hours Start 2025.12.10 @ 19:04:37 End 2025.12.10 @ 20:22:46 Sessions 1 Manual Loads 0 Difficulty Explorer Special Mode None Game No. 10 Rogue 0 Adventurer 0 Explorer 10 Win Type - Total 0 Types 0/0/0/0/0/0/0/0/0/0 Lore% 6 Gallery% 13 Achievement% 11 Wizard Run 0 Options --------- Layout 1 ASCII 0 Keyboard 1 Movement Numpad Keybinds 0 Fullscreen 1 Font 24/Smallcaps Map View 50x35 Zoom Use 0% Tactical HUD 1 Map Filters NONE Filters NONE Steam 1 RUN: bb74c2a6-6476-43a9-a8e6-b83ed67db631